{"text_format":"1","workbook":"xlsx","n_sheets":6,"sheets":["D0.3","Stats","Chart detailed","Status change flow","Parameters","Values"],"not_rendered":{"charts":3,"images":1,"macros":1,"external_links":4,"defined_names":4,"comments":0,"pivot_tables":0},"unopened":[{"sheet":"Chart detailed","index":2,"reason":"not_a_worksheet"}],"bounds":{"document_bytes":16777216,"sheet_cells":100000,"rows_first":2000,"rows_last":500,"rows_between":2000,"halvings":0,"cell_chars":16384,"cell_head_chars":4096},"cells_cut":0,"cells_raw":0,"read":"whole","date_system":"1900"}

{"sheet":"D0.3","index":0,"n_rows":619,"n_cols":20,"rows_kept":619,"cut":false,"hidden":false,"merged":[]}
["Comment\nNumber","TF?/WG","Comment\nStatus","Resolution\nStatus","Commenter\nSatisfaction","Comment\nCategory","Comment\nType","Required","Page #","Clause","Sub-clause","Line #","Comment","Proposed\nChange","Commenter\nName","Commenter\nAffiliation","Commenter\nEmail","Commenter\nPhone","Comment\nResolution","Last modified on"]
[1,"TF3","Resolved","Accept","None",null,"Editorial","No",8,4,"FM",15,"Something went wrong with TOC - 4.1.1 entry seems to be overlapping with 4.1 entry","Please regenerate TOC and make sure that PDF corresponds to clean Word document. ",{"$f":"IF($A2<>\"\",'[1]Step 1 -- Commenter information'!$B$2,\"\")","v":"Marek Hajduczenia"},{"$f":"IF($A2<>\"\",'[1]Step 1 -- Commenter information'!$B$3,\"\")","v":"Charter Communications"},null,null,"P9. Yes. ToC generation is broken. Will double check next time.","2016.06.22, 09:27"]
[2,"TF3","Resolved","Accept","None",null,"Technical","No",12,1,1.1000000000000001,4,"\"This document defines the encapsulation and mapping of radio protocols to be fronthauled over Ethernet\" - this is the first time the term \"fronthaul\" is used in the document and there is no definition of such term.","Change to \"This document defines the encapsulation and mapping of radio protocols to be transported over Ethernet\"\nConsider also adding a statement in the lines of \"The transport of packetized radio signal over Ethernet is referred to in this standard as fronthaul.\" to explain what it is ... ",{"$f":"IF($A3<>\"\",'[1]Step 1 -- Commenter information'!$B$2,\"\")","v":"Marek Hajduczenia"},{"$f":"IF($A3<>\"\",'[1]Step 1 -- Commenter information'!$B$3,\"\")","v":"Charter Communications"},null,null,"P13. Agreed.","2016.06.22, 16:23"]
[3,"TF3","Resolved","AIP","None",null,"Editorial","No",12,1,1.1000000000000001,9,"Is \"802.1CM\" and should be \"IEEE Std 802.1\" with reference to proper standard version - there are multiple instances of this problem","Please also make sure that reference to 802.1CM is properly expanded. ",{"$f":"IF($A4<>\"\",'[1]Step 1 -- Commenter information'!$B$2,\"\")","v":"Marek Hajduczenia"},{"$f":"IF($A4<>\"\",'[1]Step 1 -- Commenter information'!$B$3,\"\")","v":"Charter Communications"},null,null,"P13. Move to bibliography as shown in 17.2 of IEEE style guide in this case IEEE Std 802.1CM. Same is true for 802.1TSN URL.\r\n\r\nOnly CPRI is a normative reference - section 2 of IEEE style guide.","2016.06.22, 09:47"]
[4,"TF3","Resolved","Accept","None",null,"Technical","No",12,1,1.1000000000000001,9,"Unnecessary: \"Alternative transparent mechanisms are\n10 also permitted in conjunction with or in lieu of 802.1CM profile.\" - already stated clearly in two last sentences","Strike the offending text",{"$f":"IF($A5<>\"\",'[1]Step 1 -- Commenter information'!$B$2,\"\")","v":"Marek Hajduczenia"},{"$f":"IF($A5<>\"\",'[1]Step 1 -- Commenter information'!$B$3,\"\")","v":"Charter Communications"},null,null,"P13. agreed.","2016.06.22, 09:27"]
[5,"TF3","Resolved","Accept","None",null,"Editorial","No",12,1,1.1000000000000001,13,"Typos: \"tehnology\"","Please check the draft to make sure there are NO typos present … ",{"$f":"IF($A6<>\"\",'[1]Step 1 -- Commenter information'!$B$2,\"\")","v":"Marek Hajduczenia"},{"$f":"IF($A6<>\"\",'[1]Step 1 -- Commenter information'!$B$3,\"\")","v":"Charter Communications"},null,null,"P13. Agreed. MS Word does not behave well on this document - spelling check does not work.","2016.06.22, 09:27"]
[6,"TF3","Resolved","Reject","None",null,"Technical","No",12,1,1.1000000000000001,11,"It is unclear what the purpose of discussion on implementation of ROE in the Scope statement for the standard is","Remove lines 11-16. Consider removing line 17 as well - it is repetition of the statement in lines 7-9 anyway. \nLines 11-16 could be placed where RoE is discussed as an architecture",{"$f":"IF($A7<>\"\",'[1]Step 1 -- Commenter information'!$B$2,\"\")","v":"Marek Hajduczenia"},{"$f":"IF($A7<>\"\",'[1]Step 1 -- Commenter information'!$B$3,\"\")","v":"Charter Communications"},null,null,"P13. Newcomers to the TF found the text and position of it useful.","2016.06.22, 16:22"]
[7,"TF3","Resolved","Accept","None",null,"Editorial","No",12,1,1.2,19,"\"describe the exact header\" - unnecessary qualirifcation \"exact\" - clearly, once you define the format, it will be exact","Remove the \"exact\" adjective",{"$f":"IF($A8<>\"\",'[1]Step 1 -- Commenter information'!$B$2,\"\")","v":"Marek Hajduczenia"},{"$f":"IF($A8<>\"\",'[1]Step 1 -- Commenter information'!$B$3,\"\")","v":"Charter Communications"},null,null,"P13. Agreed","2016.06.22, 09:27"]
[8,"TF3","Resolved","AIP","None",null,"Editorial","No",12,1,1.2,19,"Seems like sentence got broken in the middle: \"encapsulations required to;\n20 transport any newly defined fronthaul protocol\"","Change to \"encapsulations required to transport any newly defined fronthaul protocol\"",{"$f":"IF($A9<>\"\",'[1]Step 1 -- Commenter information'!$B$2,\"\")","v":"Marek Hajduczenia"},{"$f":"IF($A9<>\"\",'[1]Step 1 -- Commenter information'!$B$3,\"\")","v":"Charter Communications"},null,null,"P13. Paragraphs below should be bullet points.","2016.06.22, 09:55"]
[9,"TF3","Resolved","Accept","None",null,"Editorial","No",12,1,1.2,20,"Open brackets, with no matching closing one: \"(i.e. the “native RoE” encapsulation\"","Please make sure there is a matching bracket somewhere around in the sentence",{"$f":"IF($A10<>\"\",'[1]Step 1 -- Commenter information'!$B$2,\"\")","v":"Marek Hajduczenia"},{"$f":"IF($A10<>\"\",'[1]Step 1 -- Commenter information'!$B$3,\"\")","v":"Charter Communications"},null,null,"P13. Accept","2016.06.22, 09:55"]
[10,"TF3","Resolved","Accept","None",null,"Editorial","No",12,1,1.2,23,"Formatting gone wrong: lines 23-26 are intended to be bulleted","Per comment",{"$f":"IF($A11<>\"\",'[1]Step 1 -- Commenter information'!$B$2,\"\")","v":"Marek Hajduczenia"},{"$f":"IF($A11<>\"\",'[1]Step 1 -- Commenter information'!$B$3,\"\")","v":"Charter Communications"},null,null,"P13. Yes, it looks like the list bullets are missing.","2016.06.22, 09:55"]
[11,"TF3","Resolved","Accept","None",null,"Editorial","No",12,1,1.2,21,"Unnecessary reference to bulleted list: \"used to transport other existing fronthaul protocols in a ways described in the next two bullet points\"","Change to: \"used to transport other existing fronthaul protocols as follows:\"",{"$f":"IF($A12<>\"\",'[1]Step 1 -- Commenter information'!$B$2,\"\")","v":"Marek Hajduczenia"},{"$f":"IF($A12<>\"\",'[1]Step 1 -- Commenter information'!$B$3,\"\")","v":"Charter Communications"},null,null,"P13. Agreed.","2016.06.22, 09:28"]
[12,"TF3","Resolved","Accept","None",null,"Editorial","No",12,1,1.2,23,"\"bit transparent\" is a compound adjective and should be hyphenized","Change to \"bit-transparent\" globally\nThe same applies to \"structure-agnostic\"",{"$f":"IF($A13<>\"\",'[1]Step 1 -- Commenter information'!$B$2,\"\")","v":"Marek Hajduczenia"},{"$f":"IF($A13<>\"\",'[1]Step 1 -- Commenter information'!$B$3,\"\")","v":"Charter Communications"},null,null,"OK","2016.06.22, 09:28"]
[13,"TF3","Resolved","AIP","None",null,"Technical","No",12,1,1.2,23,"For a reader of the purpose statement, it is not clear what the difference between lines 23-24 and then 25-26 is. Either remove reference to these (they are not needed to understand the scope of the document either way) or explain better what the difference between two options is","Per comment",{"$f":"IF($A14<>\"\",'[1]Step 1 -- Commenter information'!$B$2,\"\")","v":"Marek Hajduczenia"},{"$f":"IF($A14<>\"\",'[1]Step 1 -- Commenter information'!$B$3,\"\")","v":"Charter Communications"},null,null,"P13. Add (structure aware) to 25-26","2016.06.22, 09:57"]
[14,"TF3","Resolved","Accept","None",null,"Editorial","No",12,1,1.2,20,"\"i.e.\" is always followed by \",\"","Make sure all instances of \"i.e.\" are followed by \",\"",{"$f":"IF($A15<>\"\",'[1]Step 1 -- Commenter information'!$B$2,\"\")","v":"Marek Hajduczenia"},{"$f":"IF($A15<>\"\",'[1]Step 1 -- Commenter information'!$B$3,\"\")","v":"Charter Communications"},null,null,"OK","2016.06.22, 09:28"]
[15,"TF3","Resolved","Accept","None",null,"Editorial","Yes",12,1,1.2,27,"No content in 1.3","Either add content, or remove the subclause altogether",{"$f":"IF($A16<>\"\",'[1]Step 1 -- Commenter information'!$B$2,\"\")","v":"Marek Hajduczenia"},{"$f":"IF($A16<>\"\",'[1]Step 1 -- Commenter information'!$B$3,\"\")","v":"Charter Communications"},null,null,"P13. Will remove","2016.06.22, 09:58"]
[16,"TF3","Resolved","Accept","None",null,"Editorial","Yes",13,2,2,6,"No references provided","Please expand on the references, as needed",{"$f":"IF($A17<>\"\",'[1]Step 1 -- Commenter information'!$B$2,\"\")","v":"Marek Hajduczenia"},{"$f":"IF($A17<>\"\",'[1]Step 1 -- Commenter information'!$B$3,\"\")","v":"Charter Communications"},null,null,"P14. ","2016.06.22, 09:59"]
[17,"TF3","Resolved","Accept","None",null,"Editorial","No",14,3,3.2,14,"\"Fields are shown in bold type\" - rather \"field names\" ","Change to \"Field names are shown in bold typeface.\"",{"$f":"IF($A18<>\"\",'[1]Step 1 -- Commenter information'!$B$2,\"\")","v":"Marek Hajduczenia"},{"$f":"IF($A18<>\"\",'[1]Step 1 -- Commenter information'!$B$3,\"\")","v":"Charter Communications"},null,null,"P15. Agreed","2016.06.22, 09:28"]
[18,"TF3","Resolved","Accept","None",null,"Editorial","No",14,3,3.2,13,"Minor editorial fixes in the statement: \"Within this document Parameters are in bold type and prefixed with a period, for example .seqNumPMax\"","Change to \"Within this document, names of parameters are shown in bold typeface and prefixed with a period, for example, .seqNumPMax\"",{"$f":"IF($A19<>\"\",'[1]Step 1 -- Commenter information'!$B$2,\"\")","v":"Marek Hajduczenia"},{"$f":"IF($A19<>\"\",'[1]Step 1 -- Commenter information'!$B$3,\"\")","v":"Charter Communications"},null,null,"P15. OK","2016.06.22, 09:28"]
[19,"TF3","Resolved","Accept","None",null,"Editorial","Yes",14,3,3.1,5,"Wrong formatting for individual terms and definitions. Please use the approved template","Per comment",{"$f":"IF($A20<>\"\",'[1]Step 1 -- Commenter information'!$B$2,\"\")","v":"Marek Hajduczenia"},{"$f":"IF($A20<>\"\",'[1]Step 1 -- Commenter information'!$B$3,\"\")","v":"Charter Communications"},null,null,"P15. Will format as per IEEE style guide 3.1","2016.06.22, 10:01"]
[20,"TF3","Resolved","AIP","None",null,"Technical","Yes",14,3,3.1,5,"Terms and definitions have to be self-standing and fully comprehensible when extractef from the document and placed into the IEEE Standards Disctionaty Online for anybody to use. As they are, they are meaningless outside of this document, for example, \"Field\" is a very common word, and it is used in here in the meaning of \"RoE field\" rather than just \"field\". Also, it is not clear why it needs to be specified at all. A quick search in the dictionary shows already entries for mappers, flows, fields, and parameters, which are also common terms. ","Suggest to have the terms either removed, or create definitions which are RoE specific, e.g., change a generic \"flow\" to \"RoE flow\".",{"$f":"IF($A21<>\"\",'[1]Step 1 -- Commenter information'!$B$2,\"\")","v":"Marek Hajduczenia"},{"$f":"IF($A21<>\"\",'[1]Step 1 -- Commenter information'!$B$3,\"\")","v":"Charter Communications"},null,null,"Accept, prepend these terms with RoE in 3.1. Add text hereafter refered to as e.g. flow","2016.06.22, 09:40"]
[21,"TF3","Resolved","Accept","None",null,"Editorial","Yes",14,3,3.3,16,"Wrong formatting for individual acronyms and abbreviations. Please use the approved template","Per comment\nNote also that \"Endpoint\" is neither an acronym or abbrevation. Same for Jitter",{"$f":"IF($A22<>\"\",'[1]Step 1 -- Commenter information'!$B$2,\"\")","v":"Marek Hajduczenia"},{"$f":"IF($A22<>\"\",'[1]Step 1 -- Commenter information'!$B$3,\"\")","v":"Charter Communications"},null,null,"P15. Will format as per IEEE style guide 3.1 & 3.2. Will move lines for jitter and endpoint to section 3.1 of the std\r\n","2016.06.22, 10:03"]
[22,"TF3","Incomplete","Reject","None",null,"Technical","Yes",15,3,3.4,3,"No DUT in \"All RoE packets shall use the EtherType value shown in Table 1.\" - packets are NOT a testable entity under any means - the RoE source endpoint (if you have such a concept, or whatever the transmitter is called) should be used instead","Per comment",{"$f":"IF($A23<>\"\",'[1]Step 1 -- Commenter information'!$B$2,\"\")","v":"Marek Hajduczenia"},{"$f":"IF($A23<>\"\",'[1]Step 1 -- Commenter information'!$B$3,\"\")","v":"Charter Communications"},null,null,"We do not understand the comment\r\n","2016.06.22, 16:22"]
[23,"TF3","Resolved","Accept","None",null,"Editorial","Yes",15,3,3.4,4,"Wrong format of Table / Figure numbering for captions","Should be \"Clause-Number\" instead. Please apply the template",{"$f":"IF($A24<>\"\",'[1]Step 1 -- Commenter information'!$B$2,\"\")","v":"Marek Hajduczenia"},{"$f":"IF($A24<>\"\",'[1]Step 1 -- Commenter information'!$B$3,\"\")","v":"Charter Communications"},null,null,"P16. Accept","2016.06.22, 10:08"]
[24,"TF3","Resolved","Accept","None",null,"Technical","No",15,3,3.4,4,"The purpose of \"(*)\" in Table 1 is not explained","Please add a footnote with text, or whatever the purpose of this reference point is",{"$f":"IF($A25<>\"\",'[1]Step 1 -- Commenter information'!$B$2,\"\")","v":"Marek Hajduczenia"},{"$f":"IF($A25<>\"\",'[1]Step 1 -- Commenter information'!$B$3,\"\")","v":"Charter Communications"},null,null,"P16. Agreed (there used to be a comment to this effect)","2016.06.22, 09:28"]
[25,"TF3","Resolved","Reject","None",null,"Editorial","Yes",15,3,3.5,6,"I see zero value in demonstrating endianess of byte ordering, apart from refercing whether big or small endian representation is used. ","Replace lines 6 -14 with the followign text: \"For Ethernet packets, this document uses big-endian byte ordering representation.\"\nThere are several references that could be used to explain this concept better, without creating additional explanation of what ednianess is ... ",{"$f":"IF($A26<>\"\",'[1]Step 1 -- Commenter information'!$B$2,\"\")","v":"Marek Hajduczenia"},{"$f":"IF($A26<>\"\",'[1]Step 1 -- Commenter information'!$B$3,\"\")","v":"Charter Communications"},null,null,"P16. 1904.3 like this.","2016.06.22, 16:22"]
[26,"TF3","Resolved","AIP","None",null,"Technical","No",15,3,3.5,11,"The purpose of lines 11-12 in the context of \"Bit, octet ordering and numerical presentation\" is lost on me","Remove lines 11-12 - there is no need for this explanation at this point. You do not need to justify everything that is used in the document",{"$f":"IF($A27<>\"\",'[1]Step 1 -- Commenter information'!$B$2,\"\")","v":"Marek Hajduczenia"},{"$f":"IF($A27<>\"\",'[1]Step 1 -- Commenter information'!$B$3,\"\")","v":"Charter Communications"},null,null,"P16. Accept","2016.06.22, 16:01"]
[27,"TF3","Resolved","Reject","None",null,"Editorial","No",15,3,3.5,15,"For decimal, binary, and hex representations, consider reusing balloted text from IEEE Std 1904.1, 3.5.7 and 3.5.8, which is much more complete and comprehensive. For decimal representation, there is really no need for any additional statements. ","Per comment",{"$f":"IF($A28<>\"\",'[1]Step 1 -- Commenter information'!$B$2,\"\")","v":"Marek Hajduczenia"},{"$f":"IF($A28<>\"\",'[1]Step 1 -- Commenter information'!$B$3,\"\")","v":"Charter Communications"},null,null,"P16. We dont see any value at this time.","2016.06.22, 16:22"]
[28,"TF3","Resolved","Accept","None",null,"Technical","Yes",16,4,4,1,"The document jumps right into specification of packet formats, without really showing what the overal network architecture is, even though it is mentioned in line 3: \"overall RoE architecture\", without really showing up anywhere","Suggest to change title of Clause 4 to \"Radio over Ethernet (RoE)\" and then include the followign outline:\n4.1 Radio over Ethernet (RoE) Architecture\n4.2 RoE Traffic Types\n4.3 RoE Functional Elements\n4.4 RoE Frame Format",{"$f":"IF($A29<>\"\",'[1]Step 1 -- Commenter information'!$B$2,\"\")","v":"Marek Hajduczenia"},{"$f":"IF($A29<>\"\",'[1]Step 1 -- Commenter information'!$B$3,\"\")","v":"Charter Communications"},null,null,"Rename section headings as proposed","2016.06.22, 10:13"]
[29,"TF3","Resolved","Accept","None",null,"Editorial","Yes",14,2,2,6,"The references are not in proper format.","Example: IEEE Std 802TM-2014, IEEE Standard for Local and Metropolitan Area Networks: Overview and\nArchitecture.",{"$f":"IF($A30<>\"\",'[2]Step 1 -- Commenter information'!$B$2,\"\")","v":"Jouni Korhonen"},{"$f":"IF($A30<>\"\",'[2]Step 1 -- Commenter information'!$B$3,\"\")","v":"Broadcom Limited"},null,null,"Accept. ","2016.06.22, 10:14"]
[30,"TF3","Resolved","Accept","None",null,"Editorial","Yes",14,2,2,8,"802.1TSN is not a single specification.","Either remove 802.1TSN from normative references or replace it with the specification(s) that is needed.",{"$f":"IF($A31<>\"\",'[2]Step 1 -- Commenter information'!$B$2,\"\")","v":"Jouni Korhonen"},{"$f":"IF($A31<>\"\",'[2]Step 1 -- Commenter information'!$B$3,\"\")","v":"Broadcom Limited"},null,null,"Accept. Move to bibliography as URL","2016.06.22, 10:40"]
[31,"TF3","Resolved","AIP","None",null,"Editorial","Yes",15,3,3.1,11,"Acronyms should be expanded on the first use. Here OAM and PDU are seen for the first time.","\"Operations and Management (OAM) Type Length Value (TLV)/PDU\" ",{"$f":"IF($A32<>\"\",'[2]Step 1 -- Commenter information'!$B$2,\"\")","v":"Jouni Korhonen"},{"$f":"IF($A32<>\"\",'[2]Step 1 -- Commenter information'!$B$3,\"\")","v":"Broadcom Limited"},null,null,"Move 3.3 to 3.1","2016.06.22, 09:28"]
[32,"TF3","Resolved","AIP","None",null,"Editorial","Yes",16,3,3.5,11,"The text in lines 11-12 seems misplaced. I do not understand how the CPRI bit ordering disscussion belongs here.","Suggest removing lines 11-12 or expanding the discussion more.",{"$f":"IF($A33<>\"\",'[2]Step 1 -- Commenter information'!$B$2,\"\")","v":"Jouni Korhonen"},{"$f":"IF($A33<>\"\",'[2]Step 1 -- Commenter information'!$B$3,\"\")","v":"Broadcom Limited"},null,null,"See comment 78\r\n\r\nChange text from 'The CPRI specification defines a different ordering scheme. Translation from one scheme to the other is performed, as required, by (de)mappers'\r\n\r\nto\r\n\r\n'For structure aware and native mappers, I,Q samples are transported without their bits interleaved.'","2016.06.22, 15:58"]
[33,"TF3","Resolved","AIP","None",null,"Editorial","No",17,4,4,4,"\"RoE enabled architecture\" in not really defined in this specification.","Suggest removing the reference to \"architecture\".",{"$f":"IF($A34<>\"\",'[2]Step 1 -- Commenter information'!$B$2,\"\")","v":"Jouni Korhonen"},{"$f":"IF($A34<>\"\",'[2]Step 1 -- Commenter information'!$B$3,\"\")","v":"Broadcom Limited"},null,null,"Change 'architecture' to 'network'","2016.06.22, 10:44"]
[34,"TF3","Resolved","Accept","None",null,"Editorial","No",17,4,4.0999999999999996,7,"Acronym LCs for timing control is confusing.","Suggest renaming Timing Control to LCt",{"$f":"IF($A35<>\"\",'[2]Step 1 -- Commenter information'!$B$2,\"\")","v":"Jouni Korhonen"},{"$f":"IF($A35<>\"\",'[2]Step 1 -- Commenter information'!$B$3,\"\")","v":"Broadcom Limited"},null,null,"Ok","2016.06.22, 09:28"]
[35,"TF3","Resolved","Accept","None",null,"Editorial","No",17,4,4.0999999999999996,8,"Acronym LCt for control packets is confusing.","Suggest renaming Control Packet to LCc",{"$f":"IF($A36<>\"\",'[2]Step 1 -- Commenter information'!$B$2,\"\")","v":"Jouni Korhonen"},{"$f":"IF($A36<>\"\",'[2]Step 1 -- Commenter information'!$B$3,\"\")","v":"Broadcom Limited"},null,null,"ok","2016.06.22, 09:28"]
[36,"TF3","Resolved","AIP","None",null,"Editorial","Yes",17,4,4.0999999999999996,12,"A RoE node can lso be a pass-thru. The text states that later though in a different sentence. Also RoE endpoint has two different used format with or without hyphen.","Suggest rewroting the paragraph between lines 11 to 15. All the needed text is there but deserves a bit reordering to make it read better.",{"$f":"IF($A37<>\"\",'[2]Step 1 -- Commenter information'!$B$2,\"\")","v":"Jouni Korhonen"},{"$f":"IF($A37<>\"\",'[2]Step 1 -- Commenter information'!$B$3,\"\")","v":"Broadcom Limited"},null,null,"Change to;\r\n\r\nThis document uses terms node and RoE node meaning a RoE capable networking node that is either an originator,reciever or pass-through node of RoE communication.\r\n\r\nGlobal search replace endpoint to end-point","2016.06.22, 10:48"]
[37,"TF3","Resolved","Accept","None",null,"Editorial","No",19,4,"4.1.4",23,"Missing '.'","Add the missing full stop.",{"$f":"IF($A38<>\"\",'[2]Step 1 -- Commenter information'!$B$2,\"\")","v":"Jouni Korhonen"},{"$f":"IF($A38<>\"\",'[2]Step 1 -- Commenter information'!$B$3,\"\")","v":"Broadcom Limited"},null,null,"ok","2016.06.22, 09:28"]
[38,"TF3","Resolved","AIP","None",null,"Editorial","Yes",21,4,"4.1.5",2,"Containers are not discussed earlier and therefore the sentence starting \"If containers..\" appears misplaced.","Either containers need to be described to some extent in here or a reference needs to be given.",{"$f":"IF($A39<>\"\",'[2]Step 1 -- Commenter information'!$B$2,\"\")","v":"Jouni Korhonen"},{"$f":"IF($A39<>\"\",'[2]Step 1 -- Commenter information'!$B$3,\"\")","v":"Broadcom Limited"},null,null,"Add container definition to clause 3.1","2016.06.22, 10:49"]
[39,"TF3","Resolved","Accept","None",null,"Editorial","Yes",21,4,4.2,8,"Ethernet is written wrong.","Change \"ehternet\" to \"Ethernet\".",{"$f":"IF($A40<>\"\",'[2]Step 1 -- Commenter information'!$B$2,\"\")","v":"Jouni Korhonen"},{"$f":"IF($A40<>\"\",'[2]Step 1 -- Commenter information'!$B$3,\"\")","v":"Broadcom Limited"},null,null,"ok","2016.06.22, 09:28"]
[40,"TF3","Resolved","Accept","None",null,"Editorial","No",21,4,4.3,20,"Typo","Change \"bit\" to \"bits\".",{"$f":"IF($A41<>\"\",'[2]Step 1 -- Commenter information'!$B$2,\"\")","v":"Jouni Korhonen"},{"$f":"IF($A41<>\"\",'[2]Step 1 -- Commenter information'!$B$3,\"\")","v":"Broadcom Limited"},null,null,"ok","2016.06.22, 09:28"]
[41,"TF3","Resolved","Accept","None",null,"Editorial","No",22,4,"4.3.1",0,"Missing '.'","Add the missing full stop.",{"$f":"IF($A42<>\"\",'[2]Step 1 -- Commenter information'!$B$2,\"\")","v":"Jouni Korhonen"},{"$f":"IF($A42<>\"\",'[2]Step 1 -- Commenter information'!$B$3,\"\")","v":"Broadcom Limited"},null,null,"Change table text to 'Reserved for future sub types.' on P22. P21 Table 2 needs full stop on each row.","2016.06.22, 10:52"]
[42,"TF3","Resolved","Accept","None",null,"Technical","Yes",22,4,"4.3.3",11,"It is not clear why the Ethernet header \"shall not\" contain any length field.","Propbably it is meant to say here \"Ethernet header will not contain any length information\"..",{"$f":"IF($A43<>\"\",'[2]Step 1 -- Commenter information'!$B$2,\"\")","v":"Jouni Korhonen"},{"$f":"IF($A43<>\"\",'[2]Step 1 -- Commenter information'!$B$3,\"\")","v":"Broadcom Limited"},null,null,"Agreed.","2016.06.22, 09:28"]
[43,"TF3","Resolved","AIP","None",null,"Technical","Yes",22,4,"4.3.4",17,"This paragraph should also state that the sequence number and the time stamp are per RoE flow. This is nor clearly stated anywhere in the document.","Add a sentence saying the orderingInfo is per each RoE flow and they are independent.",{"$f":"IF($A44<>\"\",'[2]Step 1 -- Commenter information'!$B$2,\"\")","v":"Jouni Korhonen"},{"$f":"IF($A44<>\"\",'[2]Step 1 -- Commenter information'!$B$3,\"\")","v":"Broadcom Limited"},null,null,"Change to 'Ordering information is assigned to each flow and is presented in one of two methods, a seqNum or timestamp'","2016.06.22, 10:54"]
[44,"TF3","Resolved","AIP","None",null,"Editorial","Yes",24,4,"4.3.4.2",20,"References given to the same section where the text is.","Remove the reference to 4.3.4.2 and reword the sentence accordingly.",{"$f":"IF($A45<>\"\",'[2]Step 1 -- Commenter information'!$B$2,\"\")","v":"Jouni Korhonen"},{"$f":"IF($A45<>\"\",'[2]Step 1 -- Commenter information'!$B$3,\"\")","v":"Broadcom Limited"},null,null,"Remove sentence.","2016.06.22, 10:55"]
[45,"TF3","Resolved","AIP","None",null,"Technical","Yes",24,4,"4.3.4.2",2,"The timestamp should contain an explicit indication bit of the \"start of frame' (SoF). The SoF refers to e.g., CPRI hyperframe or LTE 10ms radio frame. The synchronization of the 2 bit sequence number and the presentation time to the SoF in a data path is complex unless we have an explicit indication when a specific RoE packet contain payload that is to be scheduled at the SoF boundary to the radio. This obviously has implications like the location of the payload that contains \"SoF data\" has to be placed as first octets in the RoE payload. An example could be a CPRI hyperframe boundary and the basic frame that contains the first control word would have to be the first payload data in the RoE payload field.  ","Add explicit Start of Frame bit into the timestamp format. Suggestion to reduce the timestamp accuracy from 1/64ns to 1/32ns, and then use format 1:2:24:5, where the '1' bit is the SoF bit. See presentation tf3_1606_korhonen_sof_1.pdf for further information.",{"$f":"IF($A46<>\"\",'[2]Step 1 -- Commenter information'!$B$2,\"\")","v":"Jouni Korhonen"},{"$f":"IF($A46<>\"\",'[2]Step 1 -- Commenter information'!$B$3,\"\")","v":"Broadcom Limited"},null,null,"Will add text consistant with page 11 of tf3_1606_korhonen_sof_2.pdf \r\n\r\nAdd 'SoF is a indication of a frame boundary. When the SoF bit is set to 1, this indicates the start of the payload contained within the packet is the start of the frame. For example, a radio frame boundary.'\r\n\r\nAdd 'orderInfo applies to the start of the payload'\r\n\r\nAdd to strucrure aware mapper clause 7.3.2.3 'SoF indicates a radio frame boundary'","2016.06.22, 11:13"]
[46,"TF3","Resolved","Accept","None",null,"Technical","Yes",26,6,6.5,23,"Supported 256 Ethernet links should be 255. RoE has maximum 255 available flowIDs to be used. My understanding is that we cannot go beyond 255 for any resource that can somehow be mapped to concurrent RoE flows.","change 256 to 255.",{"$f":"IF($A47<>\"\",'[2]Step 1 -- Commenter information'!$B$2,\"\")","v":"Jouni Korhonen"},{"$f":"IF($A47<>\"\",'[2]Step 1 -- Commenter information'!$B$3,\"\")","v":"Broadcom Limited"},null,null,"Agreed.","2016.06.22, 09:28"]
[47,"TF3","Resolved","AIP","None",null,"Technical","Yes",26,6,6.5,27,"I would assume the compression in RoE is not a feature of the Ethernet link. It rather is a feature of the RoE payload traffic and would be very specific to that transported payload.","Remove Ethernet link level compression.",{"$f":"IF($A48<>\"\",'[2]Step 1 -- Commenter information'!$B$2,\"\")","v":"Jouni Korhonen"},{"$f":"IF($A48<>\"\",'[2]Step 1 -- Commenter information'!$B$3,\"\")","v":"Broadcom Limited"},null,null,"Remove compression and encryption parameters from ethernet and cpri link parameters.","2016.06.22, 11:24"]
[48,"TF3","Resolved","AIP","None",null,"Technical","Yes",28,6,6.7,0,"In Table 7 stating \"Structure Agnostic\" is means basic frames does not make the mapper agnostic.","This should reworded to be agnostic to CPRI. Something like \"transported radio framing protocol units such as Basic Frames in a case of CPRI\".",{"$f":"IF($A49<>\"\",'[2]Step 1 -- Commenter information'!$B$2,\"\")","v":"Jouni Korhonen"},{"$f":"IF($A49<>\"\",'[2]Step 1 -- Commenter information'!$B$3,\"\")","v":"Broadcom Limited"},null,null,"When merging tunneling and agnostic mappers, .lenPack units are in Octets","2016.06.22, 11:26"]
[49,"TF3","Resolved","AIP","None",null,"Technical","Yes",29,6,6.8,0,"In Table 8 stating \"Structure Agnostic\" is means basic frames does not make the mapper agnostic.","This should reworded to be agnostic to CPRI. Something like \"transported radio framing protocol units such as Basic Frames in a case of CPRI\".",{"$f":"IF($A50<>\"\",'[2]Step 1 -- Commenter information'!$B$2,\"\")","v":"Jouni Korhonen"},{"$f":"IF($A50<>\"\",'[2]Step 1 -- Commenter information'!$B$3,\"\")","v":"Broadcom Limited"},null,null,"When merging tunneling and agnostic mappers, .lenPack units are in Octets","2016.06.22, 11:31"]
[50,"TF3","Resolved","AIP","None",null,"Technical","Yes",30,7,7.1,7,"Tunneling mapper is more or less equivalent to the agnostic mapper (assuming the agnostic mapper is also changed accordingly to be not specific to CPRI as expected). The real difference is that the tunneling mapper does not remove the 8B/10B line coding, which the Structure Agnostic mapper does.","Suggest removing the entire Section 7.1.",{"$f":"IF($A51<>\"\",'[2]Step 1 -- Commenter information'!$B$2,\"\")","v":"Jouni Korhonen"},{"$f":"IF($A51<>\"\",'[2]Step 1 -- Commenter information'!$B$3,\"\")","v":"Broadcom Limited"},null,null,"We will simplify the standard by merging these mappers. Section 7.1 will be absorbed into 7.2\r\nWe will add parameters to indicate;\r\n a) Whether line coding should be removed/added for RoE encapsulated payloads\r\n b) The encoded line rate in bps\r\n","2016.06.22, 11:35"]
[51,"TF3","Resolved","AIP","None",null,"Technical","Yes",31,7,7.2,14,"The current text is CPRI specific, which by 1904.3 PAR is not corrent. ","Remove CPRI specific references.",{"$f":"IF($A52<>\"\",'[2]Step 1 -- Commenter information'!$B$2,\"\")","v":"Jouni Korhonen"},{"$f":"IF($A52<>\"\",'[2]Step 1 -- Commenter information'!$B$3,\"\")","v":"Broadcom Limited"},null,null,"We will simplify the standard by merging these mappers. Section 7.1 will be absorbed into 7.2","2016.06.22, 11:37"]
[52,"TF3","Withdrawn","None","None",null,"Technical","Yes",31,7,7.2,22,"One RoE packet may contain multiple transported radio framing protocol \"framing units\" (CPRI basic frame as an example). While incrementing the sequence number by 1 for each sent RoE packet is fine but that might be different is other use cases. The sequence number increment should be flexible regarding that fact, which the sequence number description in sub-clause 4.3.4.1 already allows. ","Add a sentence or a statement that other than CPRI mappers may use different increment values for the p-counter. Alternatively move the CPRI-specific part of the text of this sub-clause (and reworded) into sub-clause 7.2.3.3.",{"$f":"IF($A53<>\"\",'[2]Step 1 -- Commenter information'!$B$2,\"\")","v":"Jouni Korhonen"},{"$f":"IF($A53<>\"\",'[2]Step 1 -- Commenter information'!$B$3,\"\")","v":"Broadcom Limited"},null,null,"\r\n**************\r\nComment withdrawn on 2016.06.22, at 11:37","2016.06.22, 16:22"]
[53,"TF3","Resolved","AIP","None",null,"Editorial","Yes",31,7,"7.2.3",30,"The agnostic mapper description shall not be CPRI specific. ","Remove the CPRI from sub-clause 7.2.3 header.",{"$f":"IF($A54<>\"\",'[2]Step 1 -- Commenter information'!$B$2,\"\")","v":"Jouni Korhonen"},{"$f":"IF($A54<>\"\",'[2]Step 1 -- Commenter information'!$B$3,\"\")","v":"Broadcom Limited"},null,null,"We will simplify the standard by merging these mappers. Section 7.1 will be absorbed into 7.2","2016.06.22, 11:37"]
[54,"TF3","Resolved","Accept","None",null,"Editorial","Yes",32,7,"7.3.1",28,"Flow ID 0 is wrong in this context. RoE has reserved NIL flowID for this purpose.","Change \"0\" to NIL flowID",{"$f":"IF($A55<>\"\",'[2]Step 1 -- Commenter information'!$B$2,\"\")","v":"Jouni Korhonen"},{"$f":"IF($A55<>\"\",'[2]Step 1 -- Commenter information'!$B$3,\"\")","v":"Broadcom Limited"},null,null,"Agreed","2016.06.22, 09:29"]
[55,"TF3","Resolved","Accept","None",null,"Technical","Yes",32,7,"7.3.1",38,"The modulo logic is turned off when the .module is set to 0. The text says the same \"effect\" is achieved by setting the modulo to 1 and index to 0. While it is true but misleading in a sense that the latter does not turn off the logic just produces the same outcome. There should be only one way of doing this.","Delete \"(the same effect is also achieved by setting the .modulo to 1 and .index to 0)\"",{"$f":"IF($A56<>\"\",'[2]Step 1 -- Commenter information'!$B$2,\"\")","v":"Jouni Korhonen"},{"$f":"IF($A56<>\"\",'[2]Step 1 -- Commenter information'!$B$3,\"\")","v":"Broadcom Limited"},null,null,"Agreed.","2016.06.22, 09:29"]
[56,"TF3","Resolved","Accept","None",null,"Editorial","No",33,7,"7.3.1",5,"Typo","remove unnecessary \".\"",{"$f":"IF($A57<>\"\",'[2]Step 1 -- Commenter information'!$B$2,\"\")","v":"Jouni Korhonen"},{"$f":"IF($A57<>\"\",'[2]Step 1 -- Commenter information'!$B$3,\"\")","v":"Broadcom Limited"},null,null,"OK","2016.06.22, 09:29"]
[57,"TF3","Resolved","Accept","None",null,"Editorial","No",33,7,"7.3.1",6,"In Table 9 there is typo in .modulo description.","Change \"turns of\" to \"turns off\".",{"$f":"IF($A58<>\"\",'[2]Step 1 -- Commenter information'!$B$2,\"\")","v":"Jouni Korhonen"},{"$f":"IF($A58<>\"\",'[2]Step 1 -- Commenter information'!$B$3,\"\")","v":"Broadcom Limited"},null,null,"Agreed","2016.06.22, 09:29"]
[58,"TF3","Resolved","Accept","None",null,"Editorial","Yes",34,7,"7.3.3",1,"Missing reference to Figure?","Add a reference to Figure 12?",{"$f":"IF($A59<>\"\",'[2]Step 1 -- Commenter information'!$B$2,\"\")","v":"Jouni Korhonen"},{"$f":"IF($A59<>\"\",'[2]Step 1 -- Commenter information'!$B$3,\"\")","v":"Broadcom Limited"},null,null,"Accept","2016.06.22, 11:38"]
[59,"TF3","Resolved","AIP","None",null,"Editorial","Yes",34,7,"7.3.4",15,"Missing shall","Change \"The following information is supported\" to \"The following information shall be supported\".",{"$f":"IF($A60<>\"\",'[2]Step 1 -- Commenter information'!$B$2,\"\")","v":"Jouni Korhonen"},{"$f":"IF($A60<>\"\",'[2]Step 1 -- Commenter information'!$B$3,\"\")","v":"Broadcom Limited"},null,null,"\r\nAdd parameters to clause 6.6\r\n\r\nc) Protocol version at location Z.2.0 i.e., control word 2.\r\nd) HDLC bit rate at location Z.66.0 i.e., control word 66.\r\ne) L1 signaling at location Z.130.0 i.e., control word 130.\r\nf) Ethernet pointer at location Z.194.0 i.e., control word 194.\r\n\r\nAdd text to 7.3.4 to say that these get populated. \r\n\r\n","2016.06.22, 11:51"]
[60,"TF3","Resolved","Accept","None",null,"Technical","Yes",34,7,"7.3.5",31,"Wrong figure reference.","Change \"Figure X\" to \"Figure 13\".",{"$f":"IF($A61<>\"\",'[2]Step 1 -- Commenter information'!$B$2,\"\")","v":"Jouni Korhonen"},{"$f":"IF($A61<>\"\",'[2]Step 1 -- Commenter information'!$B$3,\"\")","v":"Broadcom Limited"},null,null,"Agreed","2016.06.22, 09:29"]
[61,"TF3","Resolved","Accept","None",null,"Editorial","No",35,7,"7.3.7",12,"Extra \".\".","Remove extra \".\" from the mapperID example.",{"$f":"IF($A62<>\"\",'[2]Step 1 -- Commenter information'!$B$2,\"\")","v":"Jouni Korhonen"},{"$f":"IF($A62<>\"\",'[2]Step 1 -- Commenter information'!$B$3,\"\")","v":"Broadcom Limited"},null,null,"Agreed","2016.06.22, 09:29"]
[62,"TF3","Resolved","Accept","None",null,"Editorial","No",36,7,"7.3.8",29,"Typo.","Change \"dIF\" to \"If\".",{"$f":"IF($A63<>\"\",'[2]Step 1 -- Commenter information'!$B$2,\"\")","v":"Jouni Korhonen"},{"$f":"IF($A63<>\"\",'[2]Step 1 -- Commenter information'!$B$3,\"\")","v":"Broadcom Limited"},null,null,"Agreed","2016.06.22, 09:29"]
[63,"TF3","Resolved","Accept","None",null,"Editorial","No",37,7,"7.3.8",2,"Typo.","Change \"collected. to the\" to \"collected. The\".",{"$f":"IF($A64<>\"\",'[2]Step 1 -- Commenter information'!$B$2,\"\")","v":"Jouni Korhonen"},{"$f":"IF($A64<>\"\",'[2]Step 1 -- Commenter information'!$B$3,\"\")","v":"Broadcom Limited"},null,null,"Agreed","2016.06.22, 09:29"]
[64,"TF3","Resolved","Accept","None",null,"Editorial","No",37,7,"7.3.8",4,"Typo.","Change \"the.hfnModulo\" to \".hfnModulo\".",{"$f":"IF($A65<>\"\",'[2]Step 1 -- Commenter information'!$B$2,\"\")","v":"Jouni Korhonen"},{"$f":"IF($A65<>\"\",'[2]Step 1 -- Commenter information'!$B$3,\"\")","v":"Broadcom Limited"},null,null,"Agreed","2016.06.22, 09:29"]
[65,"TF3","Withdrawn","None","None",null,"Editorial","No",37,7,"7.3.8",23,"Incorrect number range for cwNum.","For the .cwNum in Table 13 it is stated valid range is 0 to 63. However, sub-clause 7.3.8 page 36 line 26 states the valid range is 1 to 64. Correct Table 13 accordingly i.e., the valid range to 1-64. At the same time bits needed for the range changes from 6 to 7.",{"$f":"IF($A66<>\"\",'[2]Step 1 -- Commenter information'!$B$2,\"\")","v":"Jouni Korhonen"},{"$f":"IF($A66<>\"\",'[2]Step 1 -- Commenter information'!$B$3,\"\")","v":"Broadcom Limited"},null,null,"**************\r\nComment withdrawn on 2016.06.22, at 16:00\r\nThere are a few errors here","2016.06.22, 16:22"]
[66,"TF3","Resolved","Accept","None",null,"Editorial","No",38,7,"7.4.2",17,"Remove explicit number assignments for the flowID.","Delete \"(1111 1111b)\".",{"$f":"IF($A67<>\"\",'[2]Step 1 -- Commenter information'!$B$2,\"\")","v":"Jouni Korhonen"},{"$f":"IF($A67<>\"\",'[2]Step 1 -- Commenter information'!$B$3,\"\")","v":"Broadcom Limited"},null,null,"Agreed, it is already stated.","2016.06.22, 09:29"]
[67,"TF3","Resolved","AIP","None",null,"Technical","Yes",39,7,"7.4.5",11,"Current text prohibits 1 to many communication usiong control packets.","Remove text \"between two RoE endpoints\"",{"$f":"IF($A68<>\"\",'[2]Step 1 -- Commenter information'!$B$2,\"\")","v":"Jouni Korhonen"},{"$f":"IF($A68<>\"\",'[2]Step 1 -- Commenter information'!$B$3,\"\")","v":"Broadcom Limited"},null,null,"Change to 'The packet payload carries a single flow or a group of flows between RoE nodes'\r\nalso applies to 7.5","2016.06.22, 13:31"]
[68,"TF3","Resolved","AIP","None",null,"Technical","No",39,7,"7.4.7.1",15,"Text missing.","Needs some writeup. I would say here also that the flowID in this case defines which control word mapper/container is in use.",{"$f":"IF($A69<>\"\",'[2]Step 1 -- Commenter information'!$B$2,\"\")","v":"Jouni Korhonen"},{"$f":"IF($A69<>\"\",'[2]Step 1 -- Commenter information'!$B$3,\"\")","v":"Broadcom Limited"},null,null,"Numbering incorrect. \r\nWill add 'Editor's Comment - To be defined at a later date.'","2016.06.22, 16:05"]
[69,"TF3","Resolved","AIP","None",null,"Editorial","Yes",39,7,"7.4.7.2",16,"Text missing.","Add description.",{"$f":"IF($A70<>\"\",'[2]Step 1 -- Commenter information'!$B$2,\"\")","v":"Jouni Korhonen"},{"$f":"IF($A70<>\"\",'[2]Step 1 -- Commenter information'!$B$3,\"\")","v":"Broadcom Limited"},null,null,"Numbering incorrect. \r\nWill add 'Editor's Comment - To be defined at a later date.'","2016.06.22, 16:06"]
[70,"TF3","Resolved","AIP","None",null,"Technical","Yes",39,7,"7.4.7.2",19,"I has not been stated anywhere what format the \"targetTimestamp\" is. ","Add a short description and point to RoE timestamp format in sub-clause 4.3.4.2.",{"$f":"IF($A71<>\"\",'[2]Step 1 -- Commenter information'!$B$2,\"\")","v":"Jouni Korhonen"},{"$f":"IF($A71<>\"\",'[2]Step 1 -- Commenter information'!$B$3,\"\")","v":"Broadcom Limited"},null,null,"Change to 'The timing packet is a control packet which contains both the seqnum and timestamp field. targetTimestamp contains the orderInfo as a timestamp and targetSeqnum contains the associated orderInfo in seqNum format as defined in 4.3.4.'","2016.06.22, 13:33"]
[71,"TF3","Resolved","Accept","None",null,"Editorial","No",40,7,7.5,4,"Wrong reference.","Change \"subclause 4.2\" to \"sub-clause 4.3\".",{"$f":"IF($A72<>\"\",'[2]Step 1 -- Commenter information'!$B$2,\"\")","v":"Jouni Korhonen"},{"$f":"IF($A72<>\"\",'[2]Step 1 -- Commenter information'!$B$3,\"\")","v":"Broadcom Limited"},null,null,"Agreed","2016.06.22, 09:29"]
[72,"TF3","Resolved","AIP","None",null,"Editorial","No",40,7,"7.5.2",7,"Text missing.","Add description.",{"$f":"IF($A73<>\"\",'[2]Step 1 -- Commenter information'!$B$2,\"\")","v":"Jouni Korhonen"},{"$f":"IF($A73<>\"\",'[2]Step 1 -- Commenter information'!$B$3,\"\")","v":"Broadcom Limited"},null,null,"Will add 'Editor's Comment - To be defined at a later date.'","2016.06.22, 16:06"]
[73,"TF3","Resolved","AIP","None",null,"Editorial","No",40,7,"7.5.2",8,"Text missing.","Add description.",{"$f":"IF($A74<>\"\",'[2]Step 1 -- Commenter information'!$B$2,\"\")","v":"Jouni Korhonen"},{"$f":"IF($A74<>\"\",'[2]Step 1 -- Commenter information'!$B$3,\"\")","v":"Broadcom Limited"},null,null,"Will add 'Editor's Comment - To be defined at a later date.'","2016.06.22, 16:06"]
[74,"TF3","Withdrawn","None","None",null,"Editorial","Yes",40,7,"7.5.3",12,"This sub-clause does not state that the payload field format shown in Figure 17 applies to native RoE data flows and structure aware mappers. And also for the case when the payload is samples.","Add description.",{"$f":"IF($A75<>\"\",'[2]Step 1 -- Commenter information'!$B$2,\"\")","v":"Jouni Korhonen"},{"$f":"IF($A75<>\"\",'[2]Step 1 -- Commenter information'!$B$3,\"\")","v":"Broadcom Limited"},null,null,"**************\r\nComment withdrawn on 2016.06.22, at 16:07","2016.06.22, 16:22"]
[75,"TF3","Resolved","AIP","None",null,"Technical","Yes",24,4,"4.3.4.2",2,"The current timestamp does not handle \"past timestamps\" at all.","Add support for \"acceptable timestamp window\", which would allow detecting late packets and past timestamps within the \"acceptable timestamp window\" limits. See the attached presentation tf3_1606_pastts_1.pdf for further information.",{"$f":"IF($A76<>\"\",'[2]Step 1 -- Commenter information'!$B$2,\"\")","v":"Jouni Korhonen"},{"$f":"IF($A76<>\"\",'[2]Step 1 -- Commenter information'!$B$3,\"\")","v":"Broadcom Limited"},null,null,"Editor will add text consistant with tf3_1606_korhonen_pastts_1.pdf page 13. \r\nThe new variable is a parameter named acceptTimeWindow and is associated with all mappers and is a 29bit value which reflects the integer and fractional ns of the timeStamp.\r\n\r\nA recieved packet with a timeStamp minus currentTime which is either negative or greater than the acceptTimeWindow consitutes an error condition, where currentTime is the current time truncated to a similar 29bit value.\r\n","2016.06.22, 16:08"]
[76,"TF3","Resolved","Accept","None",null,"Editorial","Yes",14,2,2,6,"use the full name of the standards","use the full name of the standards",{"$f":"IF($A77<>\"\",'[3]Step 1 -- Commenter information'!$B$2,\"\")","v":"Bomin Li"},{"$f":"IF($A77<>\"\",'[3]Step 1 -- Commenter information'!$B$3,\"\")","v":"bli"},null,null,"Agreed.","2016.06.22, 13:55"]
[77,"TF3","Resolved","Reject","None",null,"Editorial","Yes",16,3,3.5,9,"should the bit ordering by aligned with ieee802.3?","refer to 802.3-2012 figure 3-1, bit 0 corresponds to LSB",{"$f":"IF($A78<>\"\",'[3]Step 1 -- Commenter information'!$B$2,\"\")","v":"Bomin Li"},{"$f":"IF($A78<>\"\",'[3]Step 1 -- Commenter information'!$B$3,\"\")","v":"bli"},null,null,"No desire to change it at this point. Action item (JK) to draw out entire packet example with populated fields for an appendix.","2016.06.22, 16:22"]
[78,"TF3","Resolved","AIP","None",null,"Editorial","Yes",16,3,3.5,13,"should the bit ordering by aligned with CPRI sepecification?","refer to CPRI specification v7.0 page 20, subclause 4.2.7.1.1, bit 0 corresponds to LSB",{"$f":"IF($A79<>\"\",'[3]Step 1 -- Commenter information'!$B$2,\"\")","v":"Bomin Li"},{"$f":"IF($A79<>\"\",'[3]Step 1 -- Commenter information'!$B$3,\"\")","v":"bli"},null,null,"Change text from 'The CPRI specification defines a different ordering scheme. Translation from one scheme to the other is performed, as required, by (de)mappers'\r\n\r\nto\r\n\r\n'For structure aware and native mappers, I,Q samples are transported without their bits interleaved.'","2016.06.22, 14:24"]
[79,"TF3","Resolved","Accept","None",null,"Editorial","Yes",17,4,4.0999999999999996,7,"LCs appears for the first time, spell completely","spell completely and add abbreviation",{"$f":"IF($A80<>\"\",'[3]Step 1 -- Commenter information'!$B$2,\"\")","v":"Bomin Li"},{"$f":"IF($A80<>\"\",'[3]Step 1 -- Commenter information'!$B$3,\"\")","v":"bli"},null,null,"Agreed","2016.06.22, 14:24"]
[80,"TF3","Resolved","Accept","None",null,"Editorial","Yes",17,4,4.0999999999999996,8,"LCT appears for the first time, spell completely","spell completely and add abbreviation",{"$f":"IF($A81<>\"\",'[3]Step 1 -- Commenter information'!$B$2,\"\")","v":"Bomin Li"},{"$f":"IF($A81<>\"\",'[3]Step 1 -- Commenter information'!$B$3,\"\")","v":"bli"},null,null,"Agreed","2016.06.22, 14:24"]
[81,"TF3","Resolved","Accept","None",null,"Editorial","Yes",17,4,4.0999999999999996,9,"LCD appears for the first time, spell completely","spell completely and add abbreviation",{"$f":"IF($A82<>\"\",'[3]Step 1 -- Commenter information'!$B$2,\"\")","v":"Bomin Li"},{"$f":"IF($A82<>\"\",'[3]Step 1 -- Commenter information'!$B$3,\"\")","v":"bli"},null,null,"Agreed","2016.06.22, 14:24"]
[82,"TF3","Resolved","Accept","None",null,"Technical","Yes",19,4,"4.1.2",15,"BER should be 10^-12","BER should be 10^-12",{"$f":"IF($A83<>\"\",'[3]Step 1 -- Commenter information'!$B$2,\"\")","v":"Bomin Li"},{"$f":"IF($A83<>\"\",'[3]Step 1 -- Commenter information'!$B$3,\"\")","v":"bli"},null,null,"Agreed","2016.06.22, 09:29"]
[83,"TF3","Resolved","AIP","None",null,"Editorial","Yes",20,4,"4.1.4",1,"in figure 6, some arrows have the wrong direction","change the direction of the arrows to/from demappers",{"$f":"IF($A84<>\"\",'[3]Step 1 -- Commenter information'!$B$2,\"\")","v":"Bomin Li"},{"$f":"IF($A84<>\"\",'[3]Step 1 -- Commenter information'!$B$3,\"\")","v":"bli"},null,null,"Agreed. In addition, srcID and destID ranges are reversed.","2016.06.22, 09:27"]
[84,"TF3","Resolved","Accept","None",null,"Editorial","Yes",20,4,"4.1.4",1,"in figure 6, for CPRI Ports, .cpriID is 0, 1, ... N, not 0,0,...n","change .cpriID for the second port, from 0 to 1",{"$f":"IF($A85<>\"\",'[3]Step 1 -- Commenter information'!$B$2,\"\")","v":"Bomin Li"},{"$f":"IF($A85<>\"\",'[3]Step 1 -- Commenter information'!$B$3,\"\")","v":"bli"},null,null,"Agreed","2016.06.22, 09:29"]
[85,"TF3","Resolved","AIP","None",null,"Technical","Yes",22,4,"4.1.4.2",12,"structure agonostic mapper does not separate control data and sample data.","descibe functionalities for different mappers",{"$f":"IF($A86<>\"\",'[3]Step 1 -- Commenter information'!$B$2,\"\")","v":"Bomin Li"},{"$f":"IF($A86<>\"\",'[3]Step 1 -- Commenter information'!$B$3,\"\")","v":"bli"},null,null,"P20. Change to 'Structure aware and native mappers separate control data and sample data into different streams.'","2016.06.22, 14:27"]
[86,"TF3","Resolved","AIP","None",null,"Editorial","Yes",22,4,"4.3.4",17,"first time reader may get lost how to control the use of seqNum or timestamp?","indicate that it is controlled by the parameter and refer to the parameter in chapter 6",{"$f":"IF($A87<>\"\",'[3]Step 1 -- Commenter information'!$B$2,\"\")","v":"Bomin Li"},{"$f":"IF($A87<>\"\",'[3]Step 1 -- Commenter information'!$B$3,\"\")","v":"bli"},null,null,"Add line 'The orderInfo type used for a given flow is determined by a parameter. This parameter is described in Table 7. This parameter shall be maintained throughout the lifetime of the flow.'","2016.06.22, 14:31"]
[87,"TF3","Resolved","Accept","None",null,"Technical","Yes",22,4,"4.3.4.1",23,"should it be  0 < p-counter length <= 32 or 0 <= p < 32?","change to 0 < p-counter length <= 32 or 0 <= p < 32",{"$f":"IF($A88<>\"\",'[3]Step 1 -- Commenter information'!$B$2,\"\")","v":"Bomin Li"},{"$f":"IF($A88<>\"\",'[3]Step 1 -- Commenter information'!$B$3,\"\")","v":"bli"},null,null,"Change to \r\n\r\na. 0 <= p < 32\r\n\r\n//Note we need to adjust seqNum usage in timeStamp\r\n","2016.06.22, 15:15"]
[88,"TF3","Resolved","Accept","None",null,"Technical","Yes",22,4,"4.3.4.1",24,"should it be  0 <= q-counter length < 32 or 0 <= q < p-1?","change to 0 <= q-counter length < 32 or 0 <= q < p-1",{"$f":"IF($A89<>\"\",'[3]Step 1 -- Commenter information'!$B$2,\"\")","v":"Bomin Li"},{"$f":"IF($A89<>\"\",'[3]Step 1 -- Commenter information'!$B$3,\"\")","v":"bli"},null,null,"Change to\r\n\r\nb. 0 <= q <= p (if q=p then the q-counter is not present)\r\n\r\nAlso 'The field from p up to and including 31 is the p-counter field and the field from q to p-1 is the q-counter field.'","2016.06.22, 15:15"]
[89,"TF3","Resolved","Accept","None",null,"Technical","Yes",22,4,"4.3.4.1",25,"should it be  0 < q-counter length + p-counter length <= 32 or nothing?","change to 0 < q-counter length + p-counter length <= 32 or remove it",{"$f":"IF($A90<>\"\",'[3]Step 1 -- Commenter information'!$B$2,\"\")","v":"Bomin Li"},{"$f":"IF($A90<>\"\",'[3]Step 1 -- Commenter information'!$B$3,\"\")","v":"bli"},null,null,"remove c)","2016.06.22, 15:15"]
[90,"TF3","Resolved","Accept","None",null,"Technical","Yes",30,7,"7.1.1",22,"the number of octets in the packet is defined by the parameter","change the description that the number of octects is defined by the parameter",{"$f":"IF($A91<>\"\",'[3]Step 1 -- Commenter information'!$B$2,\"\")","v":"Bomin Li"},{"$f":"IF($A91<>\"\",'[3]Step 1 -- Commenter information'!$B$3,\"\")","v":"bli"},null,null,"Change 'The length field in the common header (see §4.2.4) defines the number of octets in the packet.'\r\n\r\nto \r\n\r\n\r\n'The parameter .lenPack defines the number of octets which are encapsulated in the RoE payload. This is reflected in the length field in the common header.'","2016.06.22, 14:47"]
[91,"TF3","Resolved","Accept","None",null,"Editorial","Yes",38,7,7.4,7,"does not fit into this chapter","move to chapter 4",{"$f":"IF($A92<>\"\",'[3]Step 1 -- Commenter information'!$B$2,\"\")","v":"Bomin Li"},{"$f":"IF($A92<>\"\",'[3]Step 1 -- Commenter information'!$B$3,\"\")","v":"bli"},null,null,"7.4 becomes 8 (7.5 becomes 7.4)","2016.06.22, 14:49"]
[92,"TF3","Resolved","Accept","None",null,"Editorial","Yes","All",null,"All",null,"The sub-section numbers to not align with the sub-section headings",null,{"$f":"IF($A93<>\"\",'[4]Step 1 -- Commenter information'!$B$2,\"\")","v":"Brian Torley"},{"$f":"IF($A93<>\"\",'[4]Step 1 -- Commenter information'!$B$3,\"\")","v":"Xilnx"},null,null,"Agreed","2016.06.22, 09:29"]
[93,"TF3","Resolved","Accept","None",null,"Technical","Yes",30,null,"7.1.1.1",25,"The first sequence number would be more logical to be 0x0000 rather than 0x0001, as the wrap around value includes 0x0000",null,{"$f":"IF($A94<>\"\",'[4]Step 1 -- Commenter information'!$B$2,\"\")","v":"Brian Torley"},{"$f":"IF($A94<>\"\",'[4]Step 1 -- Commenter information'!$B$3,\"\")","v":"Xilnx"},null,null,"agreed change to\r\n\r\n'The first sequence number in the stream shall be 0x0000' ","2016.06.22, 14:52"]
[94,"TF3","Resolved","AIP","None",null,"Technical","Yes",31,null,"7.2.1.1",null,"This section does not sate the first sequence number. It should to be consistent with section 7.1.1.1.  Is it 0 or 1?",null,{"$f":"IF($A95<>\"\",'[4]Step 1 -- Commenter information'!$B$2,\"\")","v":"Brian Torley"},{"$f":"IF($A95<>\"\",'[4]Step 1 -- Commenter information'!$B$3,\"\")","v":"Xilnx"},null,null,"Change to 'The sequence number starts from 0 and is used to reflect the framing of the source data'","2016.06.22, 14:54"]
[95,"TF3","Resolved","AIP","None",null,"Technical","Yes",32,null,"7.3.1",30,"I am unclear if .lenContainer includes the number of bits in .lenSkip. I don't think it does but to be explicit add \"Note: .lenContainer does not include the number of bits in .lenSkip). ",null,{"$f":"IF($A96<>\"\",'[4]Step 1 -- Commenter information'!$B$2,\"\")","v":"Brian Torley"},{"$f":"IF($A96<>\"\",'[4]Step 1 -- Commenter information'!$B$3,\"\")","v":"Xilnx"},null,null,"Agreed. It would be good to add this text - .lenContainer does not include the number of bits in .lenSkip","2016.06.22, 09:30"]
[96,"TF3","Resolved","Accept","None",null,"Editorial","Yes",32,null,"7.3.1",31,"Change \"per each\" to \"per\"",null,{"$f":"IF($A97<>\"\",'[4]Step 1 -- Commenter information'!$B$2,\"\")","v":"Brian Torley"},{"$f":"IF($A97<>\"\",'[4]Step 1 -- Commenter information'!$B$3,\"\")","v":"Xilnx"},null,null,"Agreed","2016.06.22, 09:30"]
[97,"TF3","Resolved","Accept","None",null,"Technical","Yes",13,null,1.1000000000000001,15,"Change \"decapsulate\" to \"de-encapsulate\", as decapsulate does not have the same meaning.  (Also change in other locations where \"decapsulation\" is used)",null,{"$f":"IF($A98<>\"\",'[4]Step 1 -- Commenter information'!$B$2,\"\")","v":"Brian Torley"},{"$f":"IF($A98<>\"\",'[4]Step 1 -- Commenter information'!$B$3,\"\")","v":"Xilnx"},null,null,"Agreed","2016.06.22, 09:31"]
[98,"TF3","Resolved","AIP","None",null,"Editorial","Yes",14,null,3.4,4,"Table 1 has (*) in one box, but there is no definition what the (*) means or refers to.",null,{"$f":"IF($A99<>\"\",'[4]Step 1 -- Commenter information'!$B$2,\"\")","v":"Brian Torley"},{"$f":"IF($A99<>\"\",'[4]Step 1 -- Commenter information'!$B$3,\"\")","v":"Xilnx"},null,null,"P16. Agreed. Will add to footer.","2016.06.22, 09:31"]
[99,"TF3","Resolved","AIP","None",null,"Editorial","Yes",17,null,4.0999999999999996,7,"LCs/LCt/LCd is missing from section 3.3 (Acronyms and abbreviations)",null,{"$f":"IF($A100<>\"\",'[4]Step 1 -- Commenter information'!$B$2,\"\")","v":"Brian Torley"},{"$f":"IF($A100<>\"\",'[4]Step 1 -- Commenter information'!$B$3,\"\")","v":"Xilnx"},null,null,"Agreed. Will explicitly describe.","2016.06.22, 09:31"]
[100,"TF3","Resolved","AIP","None",null,"Editorial","Yes",20,null,"4.1.4.2",9,"Change Header from \"(de)Mappers\"to \"Mappers/De-Mappers\"",null,{"$f":"IF($A101<>\"\",'[4]Step 1 -- Commenter information'!$B$2,\"\")","v":"Brian Torley"},{"$f":"IF($A101<>\"\",'[4]Step 1 -- Commenter information'!$B$3,\"\")","v":"Xilnx"},null,null,"OK. Same is true for (de)Packetizer","2016.06.22, 09:32"]
[101,"TF3","Resolved","Accept","None",null,"Technical","Yes",20,null,"Figure 6",2,"The mappers and demappers have both got arrows pointing upwards towards the Ethernet Links. This is confusing as the demapper should be pointing downwards, away from the Ethernet Links.",null,{"$f":"IF($A102<>\"\",'[4]Step 1 -- Commenter information'!$B$2,\"\")","v":"Brian Torley"},{"$f":"IF($A102<>\"\",'[4]Step 1 -- Commenter information'!$B$3,\"\")","v":"Xilnx"},null,null,"Accept","2016.06.22, 14:54"]
[102,"TF3","Resolved","AIP","None",null,"Technical","Yes",21,null,"4.1.4.3",4,"Many \"requirements\" throughout the draft are vague and/or not testable:\n\nRoE parameters are communicated during link establishment and define how the RoE node shall operate.\n\nThe payload data shall be comprised of the binary stream of tunneled bits without interpretation.\n\nThe use of sequence number shall be consistent with the corresponding data flow.\n\nThe “control process” shall extract the control words for the Fast C&M channel and create an appropriate Ethernet packet out of the extracted Ethernet packet data (e.g., discarding SSD, ESD,IDLE bit sequences and line coding).\ndIf there are multiple containers the areas they define shall not overlap each other.\n\nThe RoE control packet opCode specification shall describe the exact sequence number handling.\n\nThe behavior of the “control process” shall be defined by each mapper that makes use of the control data.\n\nThere is also a number of deprecated word \"will\" in the text.\n\n\n\n","Use the reserved words according to IEEE style manual:\n===\nThe word *shall* indicates mandatory requirements strictly to be followed in order to conform to the standard and from which no deviation is permitted (*shal*l equals *is required to*).\n\nNote that the use of the word *must* is deprecated and shall not be used when stating mandatory requirements; must is used only to describe unavoidable situations. \n\nThe use of the word *will* is deprecated and shall not be used when stating\nmandatory requirements; will is only used in statements of fact.\n\nThe word *should* indicates that among several possibilities, one is recommended as particularly suitable without mentioning or excluding others; or that a certain course of action is preferred but not necessarily required (*should* equals *is recommended that*).\n\nThe word *may* is used to indicate a course of action permissible within the limits of the standard (*may* equals *is permitted to*).\n\n====\nUse simple present tense in places of general description, i.e.,\n\"define how the RoE node shall operate.\" ==> \"define how the RoE node operates\".\n","Glen Kramer","Broadcom",null,null,"Need to go through each case.","2016.06.22, 16:20"]
[103,"TF3","New","None","None",null,"Technical","No",null,null,null,null,null,null,null,null,null,null,null,"2016.06.20, 00:21"]
[104,"TF3","New","None","None",null,"Technical","No",null,null,null,null,null,null,null,null,null,null,null,"2016.06.20, 00:21"]
[105,"TF3","New","None","None",null,"Technical","No",null,null,null,null,null,null,null,null,null,null,null,"2016.06.20, 00:21"]
[106,"TF3","New","None","None",null,"Technical","No",null,null,null,null,null,null,null,null,null,null,null,"2016.06.20, 00:21"]
[107,"TF3","New","None","None",null,"Technical","No",null,null,null,null,null,null,null,null,null,null,null,"2016.06.20, 00:21"]
[108,"TF3","New","None","None",null,"Technical","No",null,null,null,null,null,null,null,null,null,null,null,"2016.06.20, 00:21"]
[109,"TF3","New","None","None",null,"Technical","No",null,null,null,null,null,null,null,null,null,null,null,"2016.06.20, 00:21"]
[110,"TF3","New","None","None",null,"Technical","No",null,null,null,null,null,null,null,null,null,null,null,"2016.06.20, 00:21"]
[111,"TF3","New","None","None",null,"Technical","No",null,null,null,null,null,null,null,null,null,null,null,"2016.06.20, 00:21"]
[112,"TF3","New","None","None",null,"Technical","No",null,null,null,null,null,null,null,null,null,null,null,"2016.06.20, 00:21"]
[113,"TF3","New","None","None",null,"Technical","No",null,null,null,null,null,null,null,null,null,null,null,"2016.06.20, 00:21"]
[114,"TF3","New","None","None",null,"Technical","No",null,null,null,null,null,null,null,null,null,null,null,"2016.06.20, 00:21"]
[115,"TF3","New","None","None",null,"Technical","No",null,null,null,null,null,null,null,null,null,null,null,"2016.06.20, 00:21"]
[116,"TF3","New","None","None",null,"Technical","No",null,null,null,null,null,null,null,null,null,null,null,"2016.06.20, 00:21"]
[117,"TF3","New","None","None",null,"Technical","No",null,null,null,null,null,null,null,null,null,null,null,"2016.06.20, 00:21"]
[118,"TF3","New","None","None",null,"Technical","No",null,null,null,null,null,null,null,null,null,null,null,"2016.06.20, 00:21"]
[119,"TF3","New","None","None",null,"Technical","No",null,null,null,null,null,null,null,null,null,null,null,"2016.06.20, 00:21"]
[120,"TF3","New","None","None",null,"Technical","No",null,null,null,null,null,null,null,null,null,null,null,"2016.06.20, 00:21"]
[121,"TF3","New","None","None",null,"Technical","No",null,null,null,null,null,null,null,null,null,null,null,"2016.06.20, 00:21"]
[122,"TF3","New","None","None",null,"Technical","No",null,null,null,null,null,null,null,null,null,null,null,"2016.06.20, 00:21"]
[123,"TF3","New","None","None",null,"Technical","No",null,null,null,null,null,null,null,null,null,null,null,"2016.06.20, 00:21"]
[124,"TF3","New","None","None",null,"Technical","No",null,null,null,null,null,null,null,null,null,null,null,"2016.06.20, 00:21"]
[125,"TF3","New","None","None",null,"Technical","No",null,null,null,null,null,null,null,null,null,null,null,"2016.06.20, 00:22"]
[126,"TF3","New","None","None",null,"Technical","No",null,null,null,null,null,null,null,null,null,null,null,"2016.06.20, 00:22"]
[127,"TF3","New","None","None",null,"Technical","No",null,null,null,null,null,null,null,null,null,null,null,"2016.06.20, 00:22"]
[128,"TF3","New","None","None",null,"Technical","No",null,null,null,null,null,null,null,null,null,null,null,"2016.06.20, 00:22"]
[129,"TF3","New","None","None",null,"Technical","No",null,null,null,null,null,null,null,null,null,null,null,"2016.06.20, 00:22"]
[130,"TF3","New","None","None",null,"Technical","No",null,null,null,null,null,null,null,null,null,null,null,"2016.06.20, 00:22"]
[131,"TF3","New","None","None",null,"Technical","No",null,null,null,null,null,null,null,null,null,null,null,"2016.06.20, 00:22"]
[132,"TF3","New","None","None",null,"Technical","No",null,null,null,null,null,null,null,null,null,null,null,"2016.06.20, 00:22"]
[133,"TF3","New","None","None",null,"Technical","No",null,null,null,null,null,null,null,null,null,null,null,"2016.06.20, 00:22"]
[134,"TF3","New","None","None",null,"Technical","No",null,null,null,null,null,null,null,null,null,null,null,"2016.06.20, 00:22"]
[135,"TF3","New","None","None",null,"Technical","No",null,null,null,null,null,null,null,null,null,null,null,"2016.06.20, 00:22"]
[136,"TF3","New","None","None",null,"Technical","No",null,null,null,null,null,null,null,null,null,null,null,"2016.06.20, 00:22"]
[137,"TF3","New","None","None",null,"Technical","No",null,null,null,null,null,null,null,null,null,null,null,"2016.06.20, 00:22"]
[138,"TF3","New","None","None",null,"Technical","No",null,null,null,null,null,null,null,null,null,null,null,"2016.06.20, 00:22"]
[139,"TF3","New","None","None",null,"Technical","No",null,null,null,null,null,null,null,null,null,null,null,"2016.06.20, 00:22"]
[140,"TF3","New","None","None",null,"Technical","No",null,null,null,null,null,null,null,null,null,null,null,"2016.06.20, 00:22"]
[141,"TF3","New","None","None",null,"Technical","No",null,null,null,null,null,null,null,null,null,null,null,"2016.06.20, 00:22"]
[142,"TF3","New","None","None",null,"Technical","No",null,null,null,null,null,null,null,null,null,null,null,"2016.06.20, 00:22"]
[143,"TF3","New","None","None",null,"Technical","No",null,null,null,null,null,null,null,null,null,null,null,"2016.06.20, 00:22"]
[144,"TF3","New","None","None",null,"Technical","No",null,null,null,null,null,null,null,null,null,null,null,"2016.06.20, 00:22"]
[145,"TF3","New","None","None",null,"Technical","No",null,null,null,null,null,null,null,null,null,null,null,"2016.06.20, 00:22"]
[146,"TF3","New","None","None",null,"Technical","No",null,null,null,null,null,null,null,null,null,null,null,"2016.06.20, 00:22"]
[147,"TF3","New","None","None",null,"Technical","No",null,null,null,null,null,null,null,null,null,null,null,"2016.06.20, 00:22"]
[148,"TF3","New","None","None",null,"Technical","No",null,null,null,null,null,null,null,null,null,null,null,"2016.06.20, 00:22"]
[149,"TF3","New","None","None",null,"Technical","No",null,null,null,null,null,null,null,null,null,null,null,"2016.06.20, 00:22"]
[150,"TF3","New","None","None",null,"Technical","No",null,null,null,null,null,null,null,null,null,null,null,"2016.06.20, 00:22"]
[]
[]
[]
[]
[]
[]
[]
[]
[]
[]
[]
[]
[]
[]
[]
[]
[]
[]
[]
[]
[]
[]
[]
[]
[]
[]
[]
[]
[]
[]
[]
[]
[]
[]
[]
[]
[]
[]
[]
[]
[]
[]
[]
[]
[]
[]
[]
[]
[]
[]
[]
[]
[]
[]
[]
[]
[]
[]
[]
[]
[]
[]
[]
[]
[]
[]
[]
[]
[]
[]
[]
[]
[]
[]
[]
[]
[]
[]
[]
[]
[]
[]
[]
[]
[]
[]
[]
[]
[]
[]
[]
[]
[]
[]
[]
[]
[]
[]
[]
[]
[]
[]
[]
[]
[]
[]
[]
[]
[]
[]
[]
[]
[]
[]
[]
[]
[]
[]
[]
[]
[]
[]
[]
[]
[]
[]
[]
[]
[]
[]
[]
[]
[]
[]
[]
[]
[]
[]
[]
[]
[]
[]
[]
[]
[]
[]
[]
[]
[]
[]
[]
[]
[]
[]
[]
[]
[]
[]
[]
[]
[]
[]
[]
[]
[]
[]
[]
[]
[]
[]
[null,null,null,null,null,null,null,null,null,""]
[null,null,null,null,null,null,null,null,null,""]
[null,null,null,null,null,null,null,null,null,""]
[null,null,null,null,null,null,null,null,null,""]
[null,null,null,null,null,null,null,null,null,""]
[null,null,null,null,null,null,null,null,null,""]
[null,null,null,null,null,null,null,null,null,""]
[null,null,null,null,null,null,null,null,null,""]
[null,null,null,null,null,null,null,null,null,""]
[null,null,null,null,null,null,null,null,null,""]
[null,null,null,null,null,null,null,null,null,""]
[null,null,null,null,null,null,null,null,null,""]
[null,null,null,null,null,null,null,null,null,""]
[null,null,null,null,null,null,null,null,null,""]
[null,null,null,null,null,null,null,null,null,""]
[null,null,null,null,null,null,null,null,null,""]
[null,null,null,null,null,null,null,null,null,""]
[null,null,null,null,null,null,null,null,null,""]
[null,null,null,null,null,null,null,null,null,""]
[null,null,null,null,null,null,null,null,null,""]
[null,null,null,null,null,null,null,null,null,""]
[null,null,null,null,null,null,null,null,null,""]
[null,null,null,null,null,null,null,null,null,""]
[null,null,null,null,null,null,null,null,null,""]
[null,null,null,null,null,null,null,null,null,""]
[null,null,null,null,null,null,null,null,null,""]
[null,null,null,null,null,null,null,null,null,""]
[null,null,null,null,null,null,null,null,null,""]
[null,null,null,null,null,null,null,null,null,""]
[null,null,null,null,null,null,null,null,null,""]
[null,null,null,null,null,null,null,null,null,""]
[null,null,null,null,null,null,null,null,null,""]
[null,null,null,null,null,null,null,null,null,""]
[null,null,null,null,null,null,null,null,null,""]
[null,null,null,null,null,null,null,null,null,""]
[null,null,null,null,null,null,null,null,null,""]
[null,null,null,null,null,null,null,null,null,""]
[null,null,null,null,null,null,null,null,null,""]
[null,null,null,null,null,null,null,null,null,""]
[null,null,null,null,null,null,null,null,null,""]
[null,null,null,null,null,null,null,null,null,""]
[null,null,null,null,null,null,null,null,null,""]
[null,null,null,null,null,null,null,null,null,""]
[null,null,null,null,null,null,null,null,null,""]
[null,null,null,null,null,null,null,null,null,""]
[null,null,null,null,null,null,null,null,null,""]
[null,null,null,null,null,null,null,null,null,""]
[null,null,null,null,null,null,null,null,null,""]
[null,null,null,null,null,null,null,null,null,""]
[null,null,null,null,null,null,null,null,null,""]
[null,null,null,null,null,null,null,null,null,""]
[null,null,null,null,null,null,null,null,null,""]
[null,null,null,null,null,null,null,null,null,""]
[null,null,null,null,null,null,null,null,null,""]
[null,null,null,null,null,null,null,null,null,""]
[null,null,null,null,null,null,null,null,null,""]
[null,null,null,null,null,null,null,null,null,""]
[null,null,null,null,null,null,null,null,null,""]
[null,null,null,null,null,null,null,null,null,""]
[null,null,null,null,null,null,null,null,null,""]
[null,null,null,null,null,null,null,null,null,""]
[null,null,null,null,null,null,null,null,null,""]
[null,null,null,null,null,null,null,null,null,""]
[null,null,null,null,null,null,null,null,null,""]
[null,null,null,null,null,null,null,null,null,""]
[null,null,null,null,null,null,null,null,null,""]
[null,null,null,null,null,null,null,null,null,""]
[null,null,null,null,null,null,null,null,null,""]
[null,null,null,null,null,null,null,null,null,""]
[null,null,null,null,null,null,null,null,null,""]
[null,null,null,null,null,null,null,null,null,""]
[null,null,null,null,null,null,null,null,null,""]
[null,null,null,null,null,null,null,null,null,""]
[null,null,null,null,null,null,null,null,null,""]
[null,null,null,null,null,null,null,null,null,""]
[null,null,null,null,null,null,null,null,null,""]
[null,null,null,null,null,null,null,null,null,""]
[null,null,null,null,null,null,null,null,null,""]
[null,null,null,null,null,null,null,null,null,""]
[null,null,null,null,null,null,null,null,null,""]
[null,null,null,null,null,null,null,null,null,""]
[null,null,null,null,null,null,null,null,null,""]
[null,null,null,null,null,null,null,null,null,""]
[null,null,null,null,null,null,null,null,null,""]
[null,null,null,null,null,null,null,null,null,""]
[null,null,null,null,null,null,null,null,null,""]
[null,null,null,null,null,null,null,null,null,""]
[null,null,null,null,null,null,null,null,null,""]
[null,null,null,null,null,null,null,null,null,""]
[null,null,null,null,null,null,null,null,null,""]
[null,null,null,null,null,null,null,null,null,""]
[null,null,null,null,null,null,null,null,null,""]
[null,null,null,null,null,null,null,null,null,""]
[null,null,null,null,null,null,null,null,null,""]
[null,null,null,null,null,null,null,null,null,""]
[null,null,null,null,null,null,null,null,null,""]
[null,null,null,null,null,null,null,null,null,""]
[null,null,null,null,null,null,null,null,null,""]
[null,null,null,null,null,null,null,null,null,""]
[null,null,null,null,null,null,null,null,null,""]
[null,null,null,null,null,null,null,null,null,""]
[null,null,null,null,null,null,null,null,null,""]
[null,null,null,null,null,null,null,null,null,""]
[null,null,null,null,null,null,null,null,null,""]
[null,null,null,null,null,null,null,null,null,""]
[null,null,null,null,null,null,null,null,null,""]
[null,null,null,null,null,null,null,null,null,""]
[null,null,null,null,null,null,null,null,null,""]
[null,null,null,null,null,null,null,null,null,""]
[null,null,null,null,null,null,null,null,null,""]
[null,null,null,null,null,null,null,null,null,""]
[null,null,null,null,null,null,null,null,null,""]
[null,null,null,null,null,null,null,null,null,""]
[null,null,null,null,null,null,null,null,null,""]
[null,null,null,null,null,null,null,null,null,""]
[null,null,null,null,null,null,null,null,null,""]
[null,null,null,null,null,null,null,null,null,""]
[null,null,null,null,null,null,null,null,null,""]
[null,null,null,null,null,null,null,null,null,""]
[null,null,null,null,null,null,null,null,null,""]
[null,null,null,null,null,null,null,null,null,""]
[null,null,null,null,null,null,null,null,null,""]
[null,null,null,null,null,null,null,null,null,""]
[null,null,null,null,null,null,null,null,null,""]
[null,null,null,null,null,null,null,null,null,""]
[null,null,null,null,null,null,null,null,null,""]
[null,null,null,null,null,null,null,null,null,""]
[null,null,null,null,null,null,null,null,null,""]
[null,null,null,null,null,null,null,null,null,""]
[null,null,null,null,null,null,null,null,null,""]
[null,null,null,null,null,null,null,null,null,""]
[null,null,null,null,null,null,null,null,null,""]
[null,null,null,null,null,null,null,null,null,""]
[null,null,null,null,null,null,null,null,null,""]
[null,null,null,null,null,null,null,null,null,""]
[null,null,null,null,null,null,null,null,null,""]
[null,null,null,null,null,null,null,null,null,""]
[null,null,null,null,null,null,null,null,null,""]
[null,null,null,null,null,null,null,null,null,""]
[null,null,null,null,null,null,null,null,null,""]
[null,null,null,null,null,null,null,null,null,""]
[null,null,null,null,null,null,null,null,null,""]
[null,null,null,null,null,null,null,null,null,""]
[null,null,null,null,null,null,null,null,null,""]
[null,null,null,null,null,null,null,null,null,""]
[null,null,null,null,null,null,null,null,null,""]
[null,null,null,null,null,null,null,null,null,""]
[null,null,null,null,null,null,null,null,null,""]
[null,null,null,null,null,null,null,null,null,""]
[null,null,null,null,null,null,null,null,null,""]
[null,null,null,null,null,null,null,null,null,""]
[null,null,null,null,null,null,null,null,null,""]
[null,null,null,null,null,null,null,null,null,""]
[null,null,null,null,null,null,null,null,null,""]
[null,null,null,null,null,null,null,null,null,""]
[null,null,null,null,null,null,null,null,null,""]
[null,null,null,null,null,null,null,null,null,""]
[null,null,null,null,null,null,null,null,null,""]
[null,null,null,null,null,null,null,null,null,""]
[null,null,null,null,null,null,null,null,null,""]
[null,null,null,null,null,null,null,null,null,""]
[null,null,null,null,null,null,null,null,null,""]
[null,null,null,null,null,null,null,null,null,""]
[null,null,null,null,null,null,null,null,null,""]
[null,null,null,null,null,null,null,null,null,""]
[null,null,null,null,null,null,null,null,null,""]
[null,null,null,null,null,null,null,null,null,""]
[null,null,null,null,null,null,null,null,null,""]
[null,null,null,null,null,null,null,null,null,""]
[null,null,null,null,null,null,null,null,null,""]
[null,null,null,null,null,null,null,null,null,""]
[null,null,null,null,null,null,null,null,null,""]
[null,null,null,null,null,null,null,null,null,""]
[null,null,null,null,null,null,null,null,null,""]
[null,null,null,null,null,null,null,null,null,""]
[null,null,null,null,null,null,null,null,null,""]
[null,null,null,null,null,null,null,null,null,""]
[null,null,null,null,null,null,null,null,null,""]
[null,null,null,null,null,null,null,null,null,""]
[null,null,null,null,null,null,null,null,null,""]
[null,null,null,null,null,null,null,null,null,""]
[null,null,null,null,null,null,null,null,null,""]
[null,null,null,null,null,null,null,null,null,""]
[null,null,null,null,null,null,null,null,null,""]
[null,null,null,null,null,null,null,null,null,""]
[null,null,null,null,null,null,null,null,null,""]
[null,null,null,null,null,null,null,null,null,""]
[null,null,null,null,null,null,null,null,null,""]
[null,null,null,null,null,null,null,null,null,""]
[null,null,null,null,null,null,null,null,null,""]
[null,null,null,null,null,null,null,null,null,""]
[null,null,null,null,null,null,null,null,null,""]
[null,null,null,null,null,null,null,null,null,""]
[null,null,null,null,null,null,null,null,null,""]
[null,null,null,null,null,null,null,null,null,""]
[null,null,null,null,null,null,null,null,null,""]
[null,null,null,null,null,null,null,null,null,""]
[null,null,null,null,null,null,null,null,null,""]
[null,null,null,null,null,null,null,null,null,""]
[null,null,null,null,null,null,null,null,null,""]
[null,null,null,null,null,null,null,null,null,""]
[null,null,null,null,null,null,null,null,null,""]
[null,null,null,null,null,null,null,null,null,""]
[null,null,null,null,null,null,null,null,null,""]
[null,null,null,null,null,null,null,null,null,""]
[null,null,null,null,null,null,null,null,null,""]
[null,null,null,null,null,null,null,null,null,""]
[null,null,null,null,null,null,null,null,null,""]
[null,null,null,null,null,null,null,null,null,""]
[null,null,null,null,null,null,null,null,null,""]
[null,null,null,null,null,null,null,null,null,""]
[null,null,null,null,null,null,null,null,null,""]
[null,null,null,null,null,null,null,null,null,""]
[null,null,null,null,null,null,null,null,null,""]
[null,null,null,null,null,null,null,null,null,""]
[null,null,null,null,null,null,null,null,null,""]
[null,null,null,null,null,null,null,null,null,""]
[null,null,null,null,null,null,null,null,null,""]
[null,null,null,null,null,null,null,null,null,""]
[null,null,null,null,null,null,null,null,null,""]
[null,null,null,null,null,null,null,null,null,""]
[null,null,null,null,null,null,null,null,null,""]
[null,null,null,null,null,null,null,null,null,""]
[null,null,null,null,null,null,null,null,null,""]
[null,null,null,null,null,null,null,null,null,""]
[null,null,null,null,null,null,null,null,null,""]
[null,null,null,null,null,null,null,null,null,""]
[null,null,null,null,null,null,null,null,null,""]
[null,null,null,null,null,null,null,null,null,""]
[null,null,null,null,null,null,null,null,null,""]
[null,null,null,null,null,null,null,null,null,""]
[null,null,null,null,null,null,null,null,null,""]
[null,null,null,null,null,null,null,null,null,""]
[null,null,null,null,null,null,null,null,null,""]
[null,null,null,null,null,null,null,null,null,""]
[null,null,null,null,null,null,null,null,null,""]
[null,null,null,null,null,null,null,null,null,""]
[null,null,null,null,null,null,null,null,null,""]
[null,null,null,null,null,null,null,null,null,""]
[null,null,null,null,null,null,null,null,null,""]
[null,null,null,null,null,null,null,null,null,""]
[null,null,null,null,null,null,null,null,null,""]
[null,null,null,null,null,null,null,null,null,""]
[null,null,null,null,null,null,null,null,null,""]
[null,null,null,null,null,null,null,null,null,""]
[null,null,null,null,null,null,null,null,null,""]
[null,null,null,null,null,null,null,null,null,""]
[null,null,null,null,null,null,null,null,null,""]
[null,null,null,null,null,null,null,null,null,""]
[null,null,null,null,null,null,null,null,null,""]
[null,null,null,null,null,null,null,null,null,""]
[null,null,null,null,null,null,null,null,null,""]
[null,null,null,null,null,null,null,null,null,""]
[null,null,null,null,null,null,null,null,null,""]
[null,null,null,null,null,null,null,null,null,""]
[null,null,null,null,null,null,null,null,null,""]
[null,null,null,null,null,null,null,null,null,""]
[null,null,null,null,null,null,null,null,null,""]
[null,null,null,null,null,null,null,null,null,""]
[null,null,null,null,null,null,null,null,null,""]
[null,null,null,null,null,null,null,null,null,""]
[null,null,null,null,null,null,null,null,null,""]
[null,null,null,null,null,null,null,null,null,""]
[null,null,null,null,null,null,null,null,null,""]
[null,null,null,null,null,null,null,null,null,""]
[null,null,null,null,null,null,null,null,null,""]
[null,null,null,null,null,null,null,null,null,""]
[null,null,null,null,null,null,null,null,null,""]
[null,null,null,null,null,null,null,null,null,""]
[null,null,null,null,null,null,null,null,null,""]
[null,null,null,null,null,null,null,null,null,""]
[null,null,null,null,null,null,null,null,null,""]
[null,null,null,null,null,null,null,null,null,""]
[null,null,null,null,null,null,null,null,null,""]
[null,null,null,null,null,null,null,null,null,""]
[null,null,null,null,null,null,null,null,null,""]
[null,null,null,null,null,null,null,null,null,""]
[null,null,null,null,null,null,null,null,null,""]
[null,null,null,null,null,null,null,null,null,""]
[null,null,null,null,null,null,null,null,null,""]
[null,null,null,null,null,null,null,null,null,""]
[null,null,null,null,null,null,null,null,null,""]
[null,null,null,null,null,null,null,null,null,""]
[null,null,null,null,null,null,null,null,null,""]
[null,null,null,null,null,null,null,null,null,""]
[null,null,null,null,null,null,null,null,null,""]
[null,null,null,null,null,null,null,null,null,""]
[null,null,null,null,null,null,null,null,null,""]
[null,null,null,null,null,null,null,null,null,""]
[null,null,null,null,null,null,null,null,null,""]
[null,null,null,null,null,null,null,null,null,""]
[null,null,null,null,null,null,null,null,null,""]
[null,null,null,null,null,null,null,null,null,""]
[null,null,null,null,null,null,null,null,null,""]
[null,null,null,null,null,null,null,null,null,""]
[null,null,null,null,null,null,null,null,null,""]
[null,null,null,null,null,null,null,null,null,""]
[null,null,null,null,null,null,null,null,null,""]

{"sheet":"Stats","index":1,"n_rows":37,"n_cols":7,"rows_kept":37,"cut":false,"hidden":false,"merged":[]}
[null,"E","ER","T","TR",null,"Totals"]
[0,{"$f":"get_Stats($A2,B$1)","v":0},0,0,0,{"$f":"get_TF_assignment(A2)","v":"WG"},{"$f":"SUM(B2:F2)","v":0}]
[99,0,0,0,0,"WG",{"$f":"SUM(B3:F3)","v":0}]
[1,{"$f":"get_Stats($A4,B$1)","v":4},{"$f":"get_Stats($A4,C$1)","v":0},2,0,{"$f":"get_TF_assignment(A4)","v":"WG"},{"$f":"SUM(B4:E4)","v":6}]
[2,0,0,0,0,"WG",0]
[3,4,0,1,0,"WG",5]
[4,5,6,3,3,"WG",17]
["4A",0,0,0,0,"TF5",{"$f":"SUM(B8:E8)","v":0}]
["4B",0,0,0,0,"TF5",0]
["4C",0,0,0,0,"TF5",0]
[5,0,0,0,0,"WG",0]
["5A",0,0,0,0,"WG",0]
[6,1,0,0,0,"TF1",1]
[7,0,0,1,0,"TF1",1]
["7A",0,0,0,0,"TF1",0]
[8,0,0,0,0,"TF2",0]
[9,0,0,0,0,"TF3",0]
["9A",0,0,0,0,"TF3",0]
["9B",0,0,0,0,"TF3",0]
[10,0,0,0,0,"TF3",0]
["10A",0,0,0,0,"TF3",0]
[11,0,0,0,0,"TF4",0]
[12,0,0,0,0,"TF4",0]
[13,0,0,0,0,"TF4",0]
["13A",0,0,0,0,"TF4",0]
[14,0,0,0,0,"TF4",0]
[null,null,null,null,null,null,{"$f":"SUM(G2:G26)","v":30}]
["Totals",{"$f":"SUM(B2:B26)","v":14},{"$f":"SUM(C2:C26)","v":6},{"$f":"SUM(D2:D26)","v":7},{"$f":"SUM(E2:E26)","v":3},{"$f":"SUM(B28:E28)","v":30},{"$f":"IF(F28=G27,\"OK\",\"ERROR\")","v":"OK"}]
[]
["TFs","WG","TF1","TF2","TF3","TF4","TF5"]
["All",{"$f":"SUM(G2:G7,G11:G12)","v":28},{"$f":"SUM(G13:G15)","v":2},{"$f":"SUM(G16)","v":0},{"$f":"SUM(G17:G21)","v":0},{"$f":"SUM(G22:G26)","v":0},{"$f":"SUM(G8:G10)","v":0}]
["E",{"$f":"SUM(B2:B7,B11:B12)","v":13},{"$f":"SUM(B13:B15)","v":1},{"$f":"SUM(B16)","v":0},{"$f":"SUM(B17:B21)","v":0},{"$f":"SUM(B22:B26)","v":0},{"$f":"SUM(B8:B10)","v":0}]
["ER",{"$f":"SUM(C2:C7,C11:C12)","v":6},{"$f":"SUM(C13:C15)","v":0},{"$f":"SUM(C16)","v":0},{"$f":"SUM(C17:C21)","v":0},{"$f":"SUM(C22:C26)","v":0},{"$f":"SUM(C8:C10)","v":0}]
["T",{"$f":"SUM(D2:D7,D11:D12)","v":6},{"$f":"SUM(D13:D15)","v":1},{"$f":"SUM(D16)","v":0},{"$f":"SUM(D17:D21)","v":0},{"$f":"SUM(D22:D26)","v":0},{"$f":"SUM(D8:D10)","v":0}]
["TR",{"$f":"SUM(E2:E7,E11:E12)","v":3},{"$f":"SUM(E13:E15)","v":0},{"$f":"SUM(E16)","v":0},{"$f":"SUM(E17:E21)","v":0},{"$f":"SUM(E22:E26)","v":0},{"$f":"SUM(E8:E10)","v":0}]
["E+ER",{"$f":"SUM(B32:B33)","v":19},{"$f":"SUM(C32:C33)","v":1},0,0,0,0]
["T+TR",{"$f":"SUM(B34:B35)","v":9},{"$f":"SUM(C34:C35)","v":1},0,0,0,0]

{"sheet":"Status change flow","index":3,"n_rows":6,"n_cols":2,"rows_kept":6,"cut":false,"hidden":false,"merged":[[1,0,1,1]]}
[]
["Legend"]
[]
["CS","Comment Status"]
["CC","Commenter Satisfaction"]
["RS","Response Status"]

{"sheet":"Parameters","index":4,"n_rows":50,"n_cols":8,"rows_kept":50,"cut":false,"hidden":true,"merged":[]}
[10000,"TF1","New","AIP","Satisfied","Technical","Yes",50]
[null,"TF2","Incomplete","Accept","Unsatisfied","Editorial","No",49]
[null,"TF3","Postponed","Reject",null,null,null,48]
[null,"TF4","Resolved",null,null,null,null,47]
[null,"WG","Withdrawn",null,null,null,null,46]
[null,null,"Proposed",null,null,null,null,45]
[null,null,"Closed",null,null,null,null,44]
[null,null,null,null,null,null,null,43]
[null,null,null,null,null,null,null,42]
[null,null,null,null,null,null,null,41]
[null,null,null,null,null,null,null,40]
[null,null,null,null,null,null,null,39]
[null,null,null,null,null,null,null,38]
[null,null,null,null,null,null,null,37]
[null,null,null,null,null,null,null,36]
[null,null,null,null,null,null,null,35]
[null,null,null,null,null,null,null,34]
[null,null,null,null,null,null,null,33]
[null,null,null,null,null,null,null,32]
[null,null,null,null,null,null,null,31]
[null,null,null,null,null,null,null,30]
[null,null,null,null,null,null,null,29]
[null,null,null,null,null,null,null,28]
[null,null,null,null,null,null,null,27]
[null,null,null,null,null,null,null,26]
[null,null,null,null,null,null,null,25]
[null,null,null,null,null,null,null,24]
[null,null,null,null,null,null,null,23]
[null,null,null,null,null,null,null,22]
[null,null,null,null,null,null,null,21]
[null,null,null,null,null,null,null,20]
[null,null,null,null,null,null,null,19]
[null,null,null,null,null,null,null,18]
[null,null,null,null,null,null,null,17]
[null,null,null,null,null,null,null,16]
[null,null,null,null,null,null,null,15]
[null,null,null,null,null,null,null,14]
[null,null,null,null,null,null,null,13]
[null,null,null,null,null,null,null,12]
[null,null,null,null,null,null,null,11]
[null,null,null,null,null,null,null,10]
[null,null,null,null,null,null,null,9]
[null,null,null,null,null,null,null,8]
[null,null,null,null,null,null,null,7]
[null,null,null,null,null,null,null,6]
[null,null,null,null,null,null,null,5]
[null,null,null,null,null,null,null,4]
[null,null,null,null,null,null,null,3]
[null,null,null,null,null,null,null,2]
[null,null,null,null,null,null,null,1]

{"sheet":"Values","index":5,"n_rows":25,"n_cols":7,"rows_kept":25,"cut":false,"hidden":true,"merged":[]}
["None","None","WG","None","Technical","Yes",0]
["New","AIP","TF1","Satisfied","Editorial","No",1]
["Proposed","Accept","TF2","Unsatisfied",null,null,2]
["Postponed","Reject","TF3","TBD",null,null,3]
["Incomplete",null,"TF4",null,null,null,4]
["Withdrawn",null,"TF5",null,null,null,"4A"]
["Resolved",null,null,null,null,null,"4B"]
[null,null,null,null,null,null,"4C"]
[null,null,null,null,null,null,5]
[null,null,null,null,null,null,"5A"]
[null,null,null,null,null,null,6]
[null,null,null,null,null,null,7]
[null,null,null,null,null,null,"7A"]
[null,null,null,null,null,null,8]
[null,null,null,null,null,null,9]
[null,null,null,null,null,null,"9A"]
[null,null,null,null,null,null,"9B"]
[null,null,null,null,null,null,10]
[null,null,null,null,null,null,"10A"]
[null,null,null,null,null,null,11]
[null,null,null,null,null,null,12]
[null,null,null,null,null,null,13]
[null,null,null,null,null,null,"13A"]
[null,null,null,null,null,null,14]
[null,null,null,null,null,null,99]